[Event "11th Arad Open 2018"]
[Site "Arad"]
[Date "2018.08.11"]
[Round "8"]
[White "Cvetkovic, Srdjan"]
[Black "Bai, Adelard"]
[Result "1/2-1/2"]
[ECO "A10"]
[WhiteElo "2252"]
[BlackElo "2071"]
[Annotator "NA"]
[PlyCount "39"]
[EventDate "2018.08.05"]
[EventType "swiss"]
[EventCountry "ROU"]
[SourceTitle "playchess.com"]
[Source "ChessBase"]
[SourceQuality "1"]
[TimeControl "40/5400+30:1800+30"]

1. c4 {[%emt 0:00:00]} g6 {[%emt 0:00:04]} 2. g3 {[%emt 0:00:35]} Bg7 {[%emt 0:00:10]} 3. Bg2 {[%emt 0:00:07]} e5 {[%emt 0:00:20]} 4. Nc3 {[%emt 0:01:05]} d6 {[%emt 0:01:31]} 5. d3 {[%emt 0:08:00]} f5 {[%emt 0:01:07]} 6. e3 {[%emt 0:01:45]} Nf6 {[%emt 0:00:25]} 7. Nge2 {[%emt 0:00:31]} O-O {[%emt 0:00:30]} 8. Bd2 {[%emt 0:07:11]} c6 {[%emt 0:04:42]} 9. b3 {[%emt 0:27:24]} Be6 {[%emt 0:05:33]} 10. d4 {[%emt 0:06:14]} e4 {[%emt 0:02:56]} 11. Nf4 {[%emt 0:15:18]} Bf7 {[%emt 0:00:15]} 12. h4 {[%emt 0:01:25]} h6 {[%emt 0:02:09]} 13. Qc2 {[%emt 0:07:17]} a6 {[%emt 0:02:18]} 14. Rc1 {[%emt 0:02:35]} Nbd7 {[%emt 0:01:25]} 15. Bh3 {[%emt 0:01:05]} g5 {[%emt 0:03:03]} 16. hxg5 {[%emt 0:01:26]} hxg5 {[%emt 0:00:05]} 17. Bxf5 {[%emt 0:00:29]} gxf4 {[%emt 0:00:12]} 18. Nxe4 {[%emt 0:00:20]} Re8 19. Nxd6 fxg3 20. fxg3 1/2-1/2

[Event "11th Arad Open 2018"]
[Site "Arad"]
[Date "2018.08.11"]
[Round "8"]
[White "Vujacic, Borivoje"]
[Black "Farkas, Gabor"]
[Result "1-0"]
[ECO "B06"]
[WhiteElo "2235"]
[BlackElo "2366"]
[Annotator "NA"]
[PlyCount "187"]
[EventDate "2018.08.05"]
[EventType "swiss"]
[EventCountry "ROU"]
[SourceTitle "playchess.com"]
[Source "ChessBase"]
[SourceQuality "1"]
[TimeControl "40/5400+30:1800+30"]

1. e4 {[%emt 0:00:00]} d6 {[%emt 0:00:00]} 2. d4 {[%emt 0:00:00]} g6 {[%emt 0:00:00]} 3. Nc3 {[%emt 0:00:04]} Bg7 {[%emt 0:00:00]} 4. Be3 {[%emt 0:00:09]} a6 {[%emt 0:00:00]} 5. a4 {[%emt 0:00:15]} Nf6 {[%emt 0:06:01]} 6. h3 {[%emt 0:00:32]} b6 {[%emt 0:00:28]} 7. Nf3 {[%emt 0:10:45]} e6 {[%emt 0:06:18]} 8. Qd2 {[%emt 0:00:48]} Bb7 {[%emt 0:01:18]} 9. Bd3 {[%emt 0:00:16]} O-O {[%emt 0:05:37]} 10. Bh6 {[%emt 0:00:37]} c5 {[%emt 0:12:29]} 11. Bxg7 {[%emt 0:11:56]} Kxg7 {[%emt 0:00:06]} 12. e5 {[%emt 0:00:52]} Ne8 {[%emt 0:00:30]} 13. Be4 {[%emt 0:04:52]} d5 {[%emt 0:08:59]} 14. Bd3 {[%emt 0:00:11]} Nc6 {[%emt 0:00:05]} 15. O-O {[%emt 0:02:27]} cxd4 {[%emt 0:01:32]} 16. Ne2 {[%emt 0:01:31]} f6 {[%emt 0:02:17]} 17. Nexd4 {[%emt 0:00:24]} Nxd4 {[%emt 0:07:13]} 18. Nxd4 {[%emt 0:01:30]} Nc7 {[%emt 0:00:05]} 19. Qe3 {[%emt 0:03:58]} Qe7 {[%emt 0:03:32]} 20. c3 {[%emt 0:03:21]} Rae8 {[%emt 0:03:57]} 21. Rae1 {[%emt 0:01:24]} a5 {[%emt 0:04:21]} 22. Qe2 {[%emt 0:02:53]} fxe5 {[%emt 0:00:48]} 23. Qxe5+ {[%emt 0:00:08]} Rf6 {[%emt 0:00:12]} 24. Re3 {[%emt 0:03:53]} Ba6 {[%emt 0:04:32]} 25. Rfe1 {[%emt 0:03:44]} Bxd3 {[%emt 0:01:12]} 26. Rxd3 {[%emt 0:00:21]} Kg8 {[%emt 0:03:38]} 27. Rf3 {[%emt 0:02:09]} Rxf3 {[%emt 0:00:29]} 28. Nxf3 {[%emt 0:00:06]} Rf8 {[%emt 0:02:39]} 29. Nd4 {[%emt 0:00:18]} Qf6 {[%emt 0:00:30]} 30. Qe3 {[%emt 0:03:39]} Re8 {[%emt 0:01:24]} 31. Nc6 {[%emt 0:03:16]} Na8 {[%emt 0:04:57]} 32. Ne5 {[%emt 0:02:36]} Qe7 {[%emt 0:02:35]} 33. Ng4 {[%emt 0:03:22]} Qg7 {[%emt 0:03:23]} 34. Qg5 {[%emt 0:00:57]} Re7 {[%emt 0:07:23]} 35. Nf6+ {[%emt 0:08:02]} Kf8 {[%emt 0:00:06]} 36. Re3 {[%emt 0:00:15]} Nc7 {[%emt 0:01:39]} 37. Rf3 {[%emt 0:01:11]} Rf7 {[%emt 0:00:05]} 38. Nd7+ {[%emt 0:04:26]} Ke8 {[%emt 0:00:06]} 39. Rxf7 Qxf7 {[%emt 0:03:47]} 40. Nxb6 {[%emt 0:00:00]} Qg7 {[%emt 0:00:00]} 41. Qe3 {[%emt 0:16:27]} e5 {[%emt 0:19:29]} 42. Qc5 {[%emt 0:01:11]} d4 {[%emt 0:00:18]} 43. Nc4 {[%emt 0:04:25]} d3 {[%emt 0:01:19]} 44. Nd6+ {[%emt 0:02:44]} Kd7 {[%emt 0:00:27]} 45. Ne4 {[%emt 0:00:47]} Qh6 {[%emt 0:01:56]} 46. Qd6+ {[%emt 0:03:10]} Kc8 {[%emt 0:00:12]} 47. Qxd3 {[%emt 0:01:17]} Qc1+ {[%emt 0:00:07]} 48. Kh2 {[%emt 0:00:27]} Qxb2 {[%emt 0:00:20]} 49. Qd6 {[%emt 0:04:39]} Qa2 {[%emt 0:03:41]} 50. Nc5 {[%emt 0:01:25]} Qd5 {[%emt 0:02:36]} 51. Qf8+ {[%emt 0:01:03]} Qd8 {[%emt 0:00:08]} 52. Qxd8+ {[%emt 0:00:16]} Kxd8 {[%emt 0:00:05]} 53. Nb7+ {[%emt 0:00:04]} Kd7 {[%emt 0:01:35]} 54. Nxa5 {[%emt 0:00:07]} Nd5 {[%emt 0:00:03]} 55. Nc4 {[%emt 0:01:22]} Nxc3 {[%emt 0:00:12]} 56. Nxe5+ {[%emt 0:00:45]} Ke6 {[%emt 0:00:41]} 57. Nf3 {[%emt 0:00:11]} Nxa4 {[%emt 0:00:34]} 58. Ng5+ {[%emt 0:00:06]} Kf6 {[%emt 0:00:13]} 59. Nxh7+ {[%emt 0:00:05]} Kg7 {[%emt 0:00:03]} 60. Ng5 {[%emt 0:00:11]} Nc5 {[%emt 0:00:06]} 61. Kg3 {[%emt 0:00:37]} Nd3 {[%emt 0:00:25]} 62. Ne6+ {[%emt 0:03:05]} Kf6 {[%emt 0:00:20]} 63. Nf4 {[%emt 0:00:19]} Nc5 {[%emt 0:00:06]} 64. Kf3 {[%emt 0:00:22]} Nd7 {[%emt 0:00:16]} 65. Ke4 {[%emt 0:00:28]} Nc5+ {[%emt 0:00:07]} 66. Kd4 {[%emt 0:00:35]} Nb3+ {[%emt 0:00:09]} 67. Kc4 {[%emt 0:01:07]} Nd2+ {[%emt 0:00:18]} 68. Kd3 {[%emt 0:00:13]} Nb3 {[%emt 0:00:05]} 69. Nd5+ {[%emt 0:00:42]} Ke5 {[%emt 0:02:48]} 70. Nc3 {[%emt 0:01:50]} Nc5+ {[%emt 0:00:10]} 71. Ke3 {[%emt 0:00:07]} Ne6 {[%emt 0:00:10]} 72. g3 {[%emt 0:00:17]} Ng7 {[%emt 0:00:10]} 73. f4+ {[%emt 0:00:13]} Ke6 {[%emt 0:00:23]} 74. g4 {[%emt 0:00:17]} Ne8 {[%emt 0:00:10]} 75. Ne4 {[%emt 0:00:17]} Nc7 {[%emt 0:00:12]} 76. Ng5+ {[%emt 0:00:37]} Kf6 {[%emt 0:00:05]} 77. Ke4 {[%emt 0:00:26]} Nb5 {[%emt 0:00:06]} 78. Nf3 {[%emt 0:00:54]} Nc3+ {[%emt 0:00:14]} 79. Kd4 {[%emt 0:00:38]} Ne2+ {[%emt 0:00:27]} 80. Ke3 {[%emt 0:00:10]} Nc3 {[%emt 0:00:14]} 81. g5+ {[%emt 0:00:26]} Kg7 {[%emt 0:00:16]} 82. Nd4 {[%emt 0:00:28]} Nd5+ {[%emt 0:00:25]} 83. Ke4 {[%emt 0:00:38]} Nc3+ {[%emt 0:00:04]} 84. Ke5 {[%emt 0:00:39]} Nd1 {[%emt 0:00:11]} 85. h4 {[%emt 0:00:46]} Nf2 {[%emt 0:00:55]} 86. f5 {[%emt 0:00:12]} gxf5 {[%emt 0:00:23]} 87. Kxf5 {[%emt 0:00:21]} Nd1 {[%emt 0:00:16]} 88. h5 {[%emt 0:00:23]} Ne3+ {[%emt 0:00:07]} 89. Ke4 {[%emt 0:01:09]} Nc4 {[%emt 0:00:17]} 90. Nf5+ {[%emt 0:00:22]} Kg8 {[%emt 0:00:57]} 91. g6 {[%emt 0:00:15]} Nb6 {[%emt 0:00:12]} 92. h6 {[%emt 0:00:12]} Nd7 {[%emt 0:00:28]} 93. Ne7+ {[%emt 0:00:14]} Kf8 {[%emt 0:00:04]} 94. Kf5 {[%emt 0:00:48]} 1-0

[Event "11th Arad Open 2018"]
[Site "Arad"]
[Date "2018.08.11"]
[Round "8"]
[White "Geiger, Alex-Emanuel"]
[Black "Panush, Viktor"]
[Result "1-0"]
[ECO "B07"]
[WhiteElo "2229"]
[BlackElo "1970"]
[Annotator "NA"]
[PlyCount "63"]
[EventDate "2018.08.05"]
[EventType "swiss"]
[EventCountry "ROU"]
[SourceTitle "playchess.com"]
[Source "ChessBase"]
[SourceQuality "1"]
[TimeControl "40/5400+30:1800+30"]

1. e4 {[%emt 0:00:00]} d6 {[%emt 0:00:15]} 2. d4 {[%emt 0:00:00]} Nf6 {[%emt 0:00:11]} 3. Nc3 {[%emt 0:00:01]} c6 {[%emt 0:01:09]} 4. f4 {[%emt 0:00:21]} Qa5 {[%emt 0:01:26]} 5. e5 {[%emt 0:01:12]} Ne4 {[%emt 0:01:36]} 6. Qf3 {[%emt 0:00:42]} d5 {[%emt 0:01:39]} 7. Bd3 {[%emt 0:00:49]} Nxc3 {[%emt 0:04:14]} 8. Bd2 {[%emt 0:00:07]} e6 {[%emt 0:00:37]} 9. bxc3 {[%emt 0:01:39]} Qa4 {[%emt 0:01:25]} 10. Ne2 {[%emt 0:07:39]} g6 {[%emt 0:06:17]} 11. O-O {[%emt 0:10:03]} b6 {[%emt 0:04:03]} 12. Kh1 {[%emt 0:07:55]} Ba6 {[%emt 0:02:45]} 13. f5 {[%emt 0:06:34]} gxf5 {[%emt 0:02:44]} 14. g4 {[%emt 0:03:28]} Nd7 {[%emt 0:08:39]} 15. gxf5 {[%emt 0:11:07]} Bxd3 {[%emt 0:06:23]} 16. cxd3 {[%emt 0:00:49]} O-O-O {[%emt 0:01:46]} 17. Qh5 {[%emt 0:05:29]} Ba3 {[%emt 0:07:06]} 18. Nf4 {[%emt 0:03:31]} Qc2 {[%emt 0:03:09]} 19. Rad1 {[%emt 0:01:52]} Rdf8 {[%emt 0:01:38]} 20. Qh6 {[%emt 0:01:13]} Re8 {[%emt 0:03:38]} 21. Qh5 {[%emt 0:07:40]} Ref8 {[%emt 0:03:09]} 22. Qh3 {[%emt 0:00:05]} exf5 {[%emt 0:09:29]} 23. Qxf5 {[%emt 0:00:04]} Bb2 {[%emt 0:03:13]} 24. Nh5 {[%emt 0:06:31]} h6 {[%emt 0:05:08]} 25. Nf6 {[%emt 0:03:10]} Rd8 {[%emt 0:00:25]} 26. Nxd7 {[%emt 0:03:22]} Rxd7 {[%emt 0:00:57]} 27. Qf6 {[%emt 0:00:07]} Rh7 {[%emt 0:04:32]} 28. Qxc6+ {[%emt 0:00:59]} Kd8 {[%emt 0:00:17]} 29. Qa8+ {[%emt 0:01:11]} Kc7 {[%emt 0:01:10]} 30. Qxa7+ {[%emt 0:00:09]} Kc8 {[%emt 0:00:32]} 31. Qa8+ {[%emt 0:00:30]} Kc7 {[%emt 0:00:14]} 32. Bf4 {[%emt 0:00:56] Kc8} 1-0

[Event "11th Arad Open 2018"]
[Site "Arad"]
[Date "2018.08.11"]
[Round "8"]
[White "Martian, Dragos-Daniel"]
[Black "Peptan, Corina-Isabela"]
[Result "1/2-1/2"]
[ECO "B22"]
[WhiteElo "2223"]
[BlackElo "2380"]
[Annotator "NA"]
[PlyCount "97"]
[EventDate "2018.08.05"]
[EventType "swiss"]
[EventCountry "ROU"]
[SourceTitle "playchess.com"]
[Source "ChessBase"]
[SourceQuality "1"]
[TimeControl "40/5400+30:1800+30"]

1. e4 {[%emt 0:03:33]} c5 {[%emt 0:00:00]} 2. c3 {[%emt 0:00:14]} e6 {[%emt 0:00:07]} 3. d4 {[%emt 0:00:06]} d5 {[%emt 0:00:07]} 4. Nd2 {[%emt 0:00:39]} cxd4 {[%emt 0:02:26]} 5. cxd4 {[%emt 0:00:05]} Nc6 {[%emt 0:00:11]} 6. Ngf3 {[%emt 0:00:15]} dxe4 {[%emt 0:02:46]} 7. Nxe4 {[%emt 0:00:07]} Be7 {[%emt 0:01:23]} 8. Bd3 {[%emt 0:00:44]} Nf6 {[%emt 0:00:12]} 9. O-O {[%emt 0:00:36]} O-O {[%emt 0:00:44]} 10. Nc3 {[%emt 0:00:17]} b6 {[%emt 0:00:40]} 11. a3 {[%emt 0:00:15]} Bb7 {[%emt 0:00:59]} 12. Re1 {[%emt 0:00:20]} Qd6 {[%emt 0:01:59]} 13. Be3 {[%emt 0:11:06]} Rad8 {[%emt 0:21:24]} 14. Qe2 {[%emt 0:04:04]} Ng4 {[%emt 0:06:37]} 15. Rad1 {[%emt 0:03:41]} Nxe3 {[%emt 0:07:32]} 16. fxe3 {[%emt 0:00:35]} g6 {[%emt 0:01:06]} 17. Bb1 {[%emt 0:04:08]} Bf6 {[%emt 0:03:46]} 18. Ne4 {[%emt 0:07:27]} Qe7 {[%emt 0:00:14]} 19. Nxf6+ {[%emt 0:00:23]} Qxf6 {[%emt 0:00:03]} 20. Be4 {[%emt 0:03:03]} Qe7 {[%emt 0:04:58]} 21. Rc1 {[%emt 0:01:25]} Rc8 {[%emt 0:06:45]} 22. b4 {[%emt 0:01:12]} Nb8 {[%emt 0:06:37]} 23. Bxb7 {[%emt 0:02:20]} Qxb7 {[%emt 0:00:01]} 24. b5 {[%emt 0:01:52]} Nd7 {[%emt 0:01:46]} 25. e4 {[%emt 0:14:43]} Nf6 {[%emt 0:03:35]} 26. Rxc8 {[%emt 0:02:29]} Rxc8 {[%emt 0:00:01]} 27. Ne5 {[%emt 0:00:25]} Ne8 {[%emt 0:16:34]} 28. Nc6 {[%emt 0:11:38]} a6 {[%emt 0:00:11]} 29. a4 {[%emt 0:00:38]} axb5 {[%emt 0:00:23]} 30. axb5 {[%emt 0:00:03]} Nd6 {[%emt 0:00:34]} 31. d5 {[%emt 0:01:35]} Re8 {[%emt 0:06:28]} 32. dxe6 {[%emt 0:08:11]} fxe6 {[%emt 0:00:10]} 33. Qd3 {[%emt 0:00:28]} Nf7 {[%emt 0:01:10]} 34. Rd1 {[%emt 0:05:00]} Qc7 {[%emt 0:03:31]} 35. e5 {[%emt 0:01:53]} Ra8 {[%emt 0:00:40]} 36. Qf3 {[%emt 0:00:22]} Re8 {[%emt 0:01:25]} 37. Ra1 {[%emt 0:02:01]} Nd8 {[%emt 0:00:05]} 38. Ra7 {[%emt 0:02:38]} Nb7 {[%emt 0:00:01]} 39. h3 {[%emt 0:00:38]} Rf8 {[%emt 0:00:33]} 40. Qd1 {[%emt 0:00:00]} Rf7 {[%emt 0:00:00]} 41. Qd4 {[%emt 0:24:42]} Kg7 {[%emt 0:17:32]} 42. Qg4 {[%emt 0:05:07]} Qc8 {[%emt 0:01:27]} 43. Qd4 {[%emt 0:01:13]} Qf8 {[%emt 0:02:54]} 44. Kh2 {[%emt 0:01:03]} Nc5 {[%emt 0:01:52]} 45. Rxf7+ {[%emt 0:05:20]} Qxf7 {[%emt 0:00:01]} 46. Kg1 {[%emt 0:01:47]} Qf5 {[%emt 0:01:18]} 47. Qd6 {[%emt 0:01:13]} Qf4 {[%emt 0:04:21]} 48. Qc7+ {[%emt 0:01:13]} Kh6 {[%emt 0:00:06]} 49. Qxb6 {[%emt 0:00:35]} 1/2-1/2

[Event "11th Arad Open 2018"]
[Site "Arad"]
[Date "2018.08.11"]
[Round "8"]
[White "Weinzettl, Ernst"]
[Black "Carasca, Bogdan-Petru"]
[Result "1-0"]
[ECO "B52"]
[WhiteElo "2215"]
[BlackElo "1993"]
[Annotator "NA"]
[PlyCount "91"]
[EventDate "2018.08.05"]
[EventType "swiss"]
[EventCountry "ROU"]
[SourceTitle "playchess.com"]
[Source "ChessBase"]
[SourceQuality "1"]
[TimeControl "40/5400+30:1800+30"]

1. e4 c5 2. Nf3 d6 3. Bb5+ Bd7 4. a4 Nc6 5. O-O Nf6 6. Re1 g6 7. c3 Bg7 8. d4 O-O 9. h3 a6 10. Bf1 e5 11. Na3 Qc7 12. dxc5 dxc5 13. Nc4 Rfd8 14. Qd6 Qxd6 15. Nxd6 Bc8 16. Nxc8 Raxc8 17. a5 h6 18. Nd2 Rd7 19. Nc4 Rcd8 20. f3 Nh5 21. Be3 Bf8 22. Nb6 Rc7 23. Nd5 Rcc8 24. g4 Nf4 25. Nxf4 exf4 26. Bxf4 g5 27. Be3 Ne5 28. Kf2 c4 29. Red1 Bd6 30. Bb6 Bc5+ 31. Bxc5 Rxd1 32. Rxd1 Rxc5 33. Rd5 Rb5 34. Ke3 Nc6 35. Bxc4 Rxb2 36. Rf5 Nd8 37. Rc5 Kf8 38. Rc7 Rb1 39. Bd5 Rb5 40. Kd4 Rxa5 41. Ke5 Rb5 42. c4 Rb4 43. c5 a5 44. Kf6 a4 45. Rc8 Ke8 46. c6 1-0

[Event "11th Arad Open 2018"]
[Site "Arad"]
[Date "2018.08.11"]
[Round "8"]
[White "Vachylia, Andrii"]
[Black "David, Alexandru-Vasile"]
[Result "0-1"]
[ECO "E04"]
[WhiteElo "2192"]
[BlackElo "2421"]
[Annotator "NA"]
[PlyCount "70"]
[EventDate "2018.08.05"]
[EventType "swiss"]
[EventCountry "ROU"]
[SourceTitle "playchess.com"]
[Source "ChessBase"]
[SourceQuality "1"]
[TimeControl "40/5400+30:1800+30"]

1. d4 {[%emt 0:00:00]} Nf6 {[%emt 0:09:51]} 2. c4 {[%emt 0:00:00]} e6 {[%emt 0:00:15]} 3. Nf3 {[%emt 0:00:00]} d5 {[%emt 0:00:07]} 4. g3 {[%emt 0:00:00]} dxc4 {[%emt 0:00:42]} 5. Bg2 {[%emt 0:00:01]} Nbd7 {[%emt 0:00:04]} 6. Qa4 {[%emt 0:02:25]} a6 {[%emt 0:03:12]} 7. Qxc4 {[%emt 0:05:54]} b5 {[%emt 0:04:49]} 8. Qc2 {[%emt 0:03:38]} Bb7 {[%emt 0:02:59]} 9. O-O {[%emt 0:00:14]} c5 {[%emt 0:00:04]} 10. dxc5 {[%emt 0:03:57]} Bxc5 {[%emt 0:01:57]} 11. Bg5 {[%emt 0:00:13]} Qb6 {[%emt 0:04:54]} 12. Nc3 {[%emt 0:04:27]} Rc8 {[%emt 0:03:16]} 13. Qd3 {[%emt 0:06:32]} Ng4 {[%emt 0:06:51]} 14. Nd1 {[%emt 0:21:54]} f6 {[%emt 0:04:46]} 15. Bf4 {[%emt 0:03:39]} g5 {[%emt 0:14:25]} 16. Bd2 {[%emt 0:13:57]} Nge5 {[%emt 0:09:24]} 17. Nxe5 {[%emt 0:02:59]} Nxe5 {[%emt 0:02:23]} 18. Qb3 {[%emt 0:00:35]} Nc4 {[%emt 0:01:41]} 19. Bb4 {[%emt 0:02:34]} Bxg2 {[%emt 0:02:02]} 20. Kxg2 {[%emt 0:00:11]} Qb7+ {[%emt 0:00:07]} 21. Kg1 {[%emt 0:00:21]} Bb6 {[%emt 0:02:16]} 22. a4 {[%emt 0:03:48]} Kf7 {[%emt 0:02:37]} 23. axb5 {[%emt 0:00:56]} axb5 {[%emt 0:00:01]} 24. Qd3 {[%emt 0:02:39]} Rcd8 {[%emt 0:00:08]} 25. Qc2 {[%emt 0:00:12]} h5 {[%emt 0:00:04]} 26. b3 {[%emt 0:03:31]} h4 {[%emt 0:04:12]} 27. bxc4 {[%emt 0:07:02]} hxg3 {[%emt 0:00:22]} 28. e4 {[%emt 0:00:04]} Rxh2 {[%emt 0:00:04]} 29. c5 {[%emt 0:00:24]} Kg8 {[%emt 0:08:46]} 30. Qb3 {[%emt 0:03:01]} Qxe4 {[%emt 0:00:28]} 31. f3 {[%emt 0:00:04]} Rh1+ {[%emt 0:02:54]} 32. Kg2 {[%emt 0:00:05]} Rh2+ {[%emt 0:00:05]} 33. Kg1 {[%emt 0:00:03]} Rh1+ {[%emt 0:01:18]} 34. Kg2 {[%emt 0:00:03]} Qe2+ {[%emt 0:00:03]} 35. Rf2 {[%emt 0:01:33]} Rh2+ {[%emt 0:00:09]} 0-1

[Event "11th Arad Open 2018"]
[Site "Arad"]
[Date "2018.08.11"]
[Round "8"]
[White "Ghimpu, Samuel-Timotei"]
[Black "Roubalik, Jakub"]
[Result "0-1"]
[ECO "B40"]
[WhiteElo "2184"]
[BlackElo "2402"]
[Annotator "NA"]
[PlyCount "58"]
[EventDate "2018.08.05"]
[EventType "swiss"]
[EventCountry "ROU"]
[SourceTitle "playchess.com"]
[Source "ChessBase"]
[SourceQuality "1"]
[TimeControl "40/5400+30:1800+30"]

1. e4 {[%emt 0:00:31]} c5 {[%emt 0:00:01]} 2. Nf3 {[%emt 0:00:12]} e6 {[%emt 0:00:12]} 3. c4 {[%emt 0:02:36]} Nc6 {[%emt 0:00:50]} 4. Nc3 {[%emt 0:03:34]} a6 {[%emt 0:00:43]} 5. g3 {[%emt 0:04:32]} Nge7 {[%emt 0:09:44]} 6. d4 {[%emt 0:08:45]} cxd4 {[%emt 0:00:33]} 7. Nxd4 {[%emt 0:00:10]} Nxd4 {[%emt 0:00:19]} 8. Qxd4 {[%emt 0:00:12]} Nc6 {[%emt 0:00:07]} 9. Qd2 {[%emt 0:07:27]} Ne5 {[%emt 0:05:37]} 10. Be2 {[%emt 0:14:03]} h5 {[%emt 0:24:27]} 11. O-O {[%emt 0:29:40]} h4 {[%emt 0:03:05]} 12. Kg2 {[%emt 0:18:56]} Qc7 {[%emt 0:02:50]} 13. b3 {[%emt 0:00:22]} b6 {[%emt 0:02:14]} 14. f4 {[%emt 0:01:17]} Ng6 {[%emt 0:02:07]} 15. Bb2 {[%emt 0:00:46]} Bb7 {[%emt 0:01:52]} 16. Rac1 {[%emt 0:00:37]} Bb4 {[%emt 0:14:27]} 17. Qe3 {[%emt 0:00:59]} Bc5 {[%emt 0:04:26]} 18. Qd2 {[%emt 0:01:44]} Ne7 {[%emt 0:07:01]} 19. Bf3 {[%emt 0:00:31]} f5 {[%emt 0:01:57]} 20. Qd3 {[%emt 0:00:59]} O-O-O {[%emt 0:05:38]} 21. a3 {[%emt 0:00:25]} fxe4 {[%emt 0:00:18]} 22. Nxe4 {[%emt 0:00:10]} Nf5 {[%emt 0:00:29]} 23. Rfe1 {[%emt 0:00:23]} hxg3 {[%emt 0:00:55]} 24. hxg3 {[%emt 0:00:12]} Rh6 {[%emt 0:03:04]} 25. Nxc5 {[%emt 0:01:18]} Qxc5 {[%emt 0:00:31]} 26. Bxb7+ {[%emt 0:01:25]} Kxb7 {[%emt 0:00:07]} 27. Qf3+ {[%emt 0:00:22]} Qc6 {[%emt 0:04:30]} 28. Rh1 {[%emt 0:00:25]} Rg6 {[%emt 0:00:28]} 29. Rh3 {[%emt 0:00:10]} Rxg3+ {[%emt 0:00:11]} 0-1

[Event "11th Arad Open 2018"]
[Site "Arad"]
[Date "2018.08.11"]
[Round "8"]
[White "Cosman, Andreea-Marioara"]
[Black "Dobre, Claudiu-Cristian"]
[Result "0-1"]
[ECO "A88"]
[WhiteElo "2175"]
[BlackElo "2356"]
[Annotator "NA"]
[PlyCount "142"]
[EventDate "2018.08.05"]
[EventType "swiss"]
[EventCountry "ROU"]
[SourceTitle "playchess.com"]
[Source "ChessBase"]
[SourceQuality "1"]
[TimeControl "40/5400+30:1800+30"]

1. d4 {[%emt 0:00:00]} f5 {[%emt 0:00:00]} 2. g3 {[%emt 0:00:00]} Nf6 {[%emt 0:00:00]} 3. Bg2 {[%emt 0:00:00]} g6 {[%emt 0:00:00]} 4. Nf3 {[%emt 0:00:00]} Bg7 {[%emt 0:00:00]} 5. O-O {[%emt 0:00:00]} O-O {[%emt 0:00:00]} 6. c4 {[%emt 0:00:03]} d6 {[%emt 0:00:00]} 7. Nc3 {[%emt 0:00:13]} c6 {[%emt 0:00:19]} 8. Qb3 {[%emt 0:10:01]} Kh8 {[%emt 0:06:26]} 9. Qa3 {[%emt 0:02:29]} Qc7 {[%emt 0:11:58]} 10. d5 {[%emt 0:06:48]} a5 {[%emt 0:21:16]} 11. Re1 {[%emt 0:23:36]} Na6 {[%emt 0:03:13]} 12. Be3 {[%emt 0:07:31]} Ng4 {[%emt 0:07:12]} 13. Bd4 {[%emt 0:04:13]} e5 {[%emt 0:00:53]} 14. dxe6 {[%emt 0:00:51]} Bxe6 {[%emt 0:00:24]} 15. Bxg7+ {[%emt 0:07:39]} Kxg7 {[%emt 0:06:03]} 16. Na4 {[%emt 0:00:28]} Kg8 {[%emt 0:09:23]} 17. Qc3 {[%emt 0:02:46]} h6 {[%emt 0:05:58]} 18. Rad1 {[%emt 0:06:47]} Rad8 {[%emt 0:00:47]} 19. b3 {[%emt 0:03:18]} Kh7 {[%emt 0:02:30]} 20. Rd4 {[%emt 0:05:18]} Nf6 {[%emt 0:03:26]} 21. Qc1 {[%emt 0:07:19]} Ne4 {[%emt 0:01:06]} 22. Nd2 {[%emt 0:01:16]} Qg7 {[%emt 0:04:15]} 23. Rd3 {[%emt 0:04:50]} b5 {[%emt 0:07:32]} 24. Nc3 {[%emt 0:02:44]} bxc4 {[%emt 0:03:13]} 25. bxc4 {[%emt 0:00:59]} Nb4 {[%emt 0:00:44]} 26. Re3 {[%emt 0:00:39]} d5 {[%emt 0:01:14]} 27. Ncxe4 {[%emt 0:00:30]} fxe4 {[%emt 0:00:28]} 28. a3 {[%emt 0:01:29]} Na6 {[%emt 0:01:00]} 29. cxd5 {[%emt 0:00:22]} cxd5 {[%emt 0:00:30]} 30. Qc6 {[%emt 0:00:20]} Qf6 {[%emt 0:00:50]} 31. Rf1 {[%emt 0:00:05]} Nb8 {[%emt 0:00:45]} 32. Qb5 {[%emt 0:01:08]} Nd7 {[%emt 0:01:15]} 33. Qxa5 {[%emt 0:00:42]} Ne5 {[%emt 0:00:32]} 34. Nxe4 {[%emt 0:01:56]} dxe4 {[%emt 0:00:33]} 35. Rxe4 {[%emt 0:00:06]} Nc4 {[%emt 0:01:36]} 36. Qc7+ {[%emt 0:00:57]} Qf7 {[%emt 0:00:59]} 37. Qxf7+ {[%emt 0:00:30]} Bxf7 {[%emt 0:00:04]} 38. Re7 {[%emt 0:00:15]} Nxa3 {[%emt 0:00:50]} 39. Ra1 {[%emt 0:00:22]} Nc2 {[%emt 0:01:19]} 40. Rb1 {[%emt 0:00:00]} Rd6 {[%emt 0:00:00]} 41. e3 {[%emt 0:17:09]} Kg8 {[%emt 0:18:18]} 42. Be4 {[%emt 0:03:55]} Na3 {[%emt 0:00:42]} 43. Rbb7 {[%emt 0:00:31]} Nc4 {[%emt 0:00:59]} 44. Bc2 {[%emt 0:04:08]} Na5 {[%emt 0:05:49]} 45. Rbc7 {[%emt 0:01:25]} Nc6 {[%emt 0:00:37]} 46. Rxf7 {[%emt 0:00:45]} Rxf7 {[%emt 0:00:13]} 47. Bb3 {[%emt 0:00:07]} Nd8 {[%emt 0:00:38]} 48. Bxf7+ {[%emt 0:01:33]} Nxf7 {[%emt 0:00:06]} 49. Kg2 {[%emt 0:01:18]} Rd2 {[%emt 0:00:38]} 50. Re7 {[%emt 0:02:21]} Kg7 {[%emt 0:00:30]} 51. Re6 {[%emt 0:00:41]} h5 {[%emt 0:02:25]} 52. h4 {[%emt 0:00:46]} Nh6 {[%emt 0:01:55]} 53. Re4 {[%emt 0:02:01]} Ng4 {[%emt 0:01:09]} 54. Rf4 {[%emt 0:00:05]} Nxe3+ {[%emt 0:00:04]} 55. Kg1 {[%emt 0:00:04]} Ng4 {[%emt 0:01:51]} 56. Kf1 {[%emt 0:00:19]} Ra2 {[%emt 0:00:21]} 57. Kg1 {[%emt 0:01:12]} Ne5 {[%emt 0:00:30]} 58. Kf1 {[%emt 0:01:03]} Nd3 {[%emt 0:00:47]} 59. Rf3 {[%emt 0:00:27]} Ra1+ {[%emt 0:00:40]} 60. Ke2 {[%emt 0:00:07]} Ne5 {[%emt 0:00:25]} 61. Rf4 {[%emt 0:00:35]} Ng4 {[%emt 0:01:17]} 62. Rf3 {[%emt 0:01:12]} Ra6 {[%emt 0:00:42]} 63. Rf4 {[%emt 0:00:35]} Rf6 {[%emt 0:00:53]} 64. Rxf6 {[%emt 0:00:17]} Kxf6 {[%emt 0:00:04]} 65. f3 {[%emt 0:00:04]} Nh6 {[%emt 0:00:40]} 66. Kf2 {[%emt 0:00:30]} Ke5 {[%emt 0:00:10]} 67. Ke3 {[%emt 0:00:23]} Nf5+ {[%emt 0:00:36]} 68. Kf2 {[%emt 0:00:04]} Kd4 {[%emt 0:00:27]} 69. g4 {[%emt 0:00:15]} hxg4 {[%emt 0:00:40]} 70. fxg4 {[%emt 0:00:12]} Nxh4 {[%emt 0:00:08]} 71. Kg3 {[%emt 0:00:04]} g5 {[%emt 0:00:04]} 0-1